[Event "Live Chess"]
[Site "Chess.com"]
[Date "2023.05.20"]
[Round "-"]
[White "Kr1xot4_XGOD"]
[Black "xx_blindpuffin_xx"]
[Result "1-0"]
[WhiteElo "2158"]
[BlackElo "2193"]
[TimeControl "300"]
[EndTime "9:19:19 PDT"]
[Termination "Kr1xot4_XGOD won by resignation"]

1. d4 {[%clk 0:04:55]} 1... d5 {[%clk 0:04:59.1]} 2. Nc3 {[%clk 0:04:52.3]} 2...
e6 {[%clk 0:04:55.2]} 3. e4 {[%clk 0:04:49.5]} 3... dxe4 {[%clk 0:04:53.3]} 4.
Nxe4 {[%clk 0:04:47.5]} 4... Bd7 {[%clk 0:04:52.9]} 5. Bd3 {[%clk 0:04:44.4]}
5... Bc6 {[%clk 0:04:51.1]} 6. Nf3 {[%clk 0:04:41.8]} 6... Nd7 {[%clk
0:04:49.4]} 7. c3 {[%clk 0:04:38]} 7... Ngf6 {[%clk 0:04:45.1]} 8. Nxf6+ {[%clk
0:04:35]} 8... Nxf6 {[%clk 0:04:44.6]} 9. O-O {[%clk 0:04:31.9]} 9... Bd6 {[%clk
0:04:42.8]} 10. a3 {[%clk 0:04:25.8]} 10... O-O {[%clk 0:04:40.5]} 11. b4 {[%clk
0:04:19.1]} 11... b6 {[%clk 0:04:37.9]} 12. c4 {[%clk 0:04:12.1]} 12... Be7
{[%clk 0:04:20]} 13. Bb2 {[%clk 0:04:09]} 13... a5 {[%clk 0:04:11.2]} 14. Ne5
{[%clk 0:04:05.4]} 14... Bb7 {[%clk 0:04:08]} 15. b5 {[%clk 0:04:04.2]} 15...
Nd7 {[%clk 0:03:43]} 16. Nxd7 {[%clk 0:04:02.1]} 16... Qxd7 {[%clk 0:03:41.5]}
17. c5 {[%clk 0:03:59.2]} 17... bxc5 {[%clk 0:03:30.5]} 18. dxc5 {[%clk
0:03:56.3]} 18... c6 {[%clk 0:03:10.4]} 19. Bxh7+ {[%clk 0:03:24]} 1-0

[Event "Live Chess"]
[Site "Chess.com"]
[Date "2023.05.20"]
[Round "-"]
[White "LodeshChess"]
[Black "WelshTiger"]
[Result "0-1"]
[WhiteElo "874"]
[BlackElo "2468"]
[TimeControl "300"]
[EndTime "9:19:25 PDT"]
[Termination "WelshTiger won by resignation"]

1. e4 {[%clk 0:04:58]} 1... c6 {[%clk 0:04:59.2]} 2. Nf3 {[%clk 0:04:53.5]} 2...
d5 {[%clk 0:04:59.1]} 3. d3 {[%clk 0:04:52.9]} 3... dxe4 {[%clk 0:04:57.8]} 4.
Ng5 {[%clk 0:04:52.6]} 4... Nf6 {[%clk 0:04:55]} 5. Nc3 {[%clk 0:04:51]} 5...
Bf5 {[%clk 0:04:50.2]} 6. dxe4 {[%clk 0:04:48.1]} 6... Qxd1+ {[%clk 0:04:47.3]}
7. Nxd1 {[%clk 0:04:43.9]} 7... Nxe4 {[%clk 0:04:45.7]} 8. Nxe4 {[%clk
0:04:41.7]} 8... Bxe4 {[%clk 0:04:45.6]} 9. Nc3 {[%clk 0:04:38.3]} 9... Bg6
{[%clk 0:04:44.1]} 10. Be3 {[%clk 0:04:11.9]} 10... e6 {[%clk 0:04:40.7]} 11.
Bd3 {[%clk 0:03:59.9]} 11... Nd7 {[%clk 0:04:38.9]} 12. Bxg6 {[%clk 0:03:58.2]}
12... hxg6 {[%clk 0:04:38.3]} 13. O-O {[%clk 0:03:57.7]} 13... Bc5 {[%clk
0:04:37.5]} 14. Bxc5 {[%clk 0:03:42.3]} 14... Nxc5 {[%clk 0:04:36.9]} 15. b4
{[%clk 0:03:42.1]} 15... Nd7 {[%clk 0:04:28.7]} 16. Ne4 {[%clk 0:03:25.4]} 16...
Ke7 {[%clk 0:04:27.1]} 17. Rad1 {[%clk 0:03:20.7]} 17... Nb6 {[%clk 0:04:22.3]}
18. a3 {[%clk 0:03:07.1]} 18... Rhd8 {[%clk 0:04:14.8]} 19. Nc5 {[%clk
0:02:59.2]} 19... Rxd1 {[%clk 0:04:11.2]} 20. Rxd1 {[%clk 0:02:58.2]} 20... Rb8
{[%clk 0:04:11.1]} 21. a4 {[%clk 0:02:45.5]} 21... Nd5 {[%clk 0:04:09.8]} 22. b5
{[%clk 0:02:29]} 22... b6 {[%clk 0:04:02.6]} 23. Na6 {[%clk 0:02:07.1]} 23...
Rc8 {[%clk 0:04:01.8]} 24. c4 {[%clk 0:02:06.3]} 24... Nc3 {[%clk 0:03:56.6]}
25. Ra1 {[%clk 0:01:49.7]} 25... c5 {[%clk 0:03:49.2]} 26. Ra3 {[%clk 0:01:39]}
26... Ne4 {[%clk 0:03:47.5]} 27. Kf1 {[%clk 0:01:28.6]} 27... Nd2+ {[%clk
0:03:45.6]} 28. Ke2 {[%clk 0:01:23.8]} 28... Nxc4 {[%clk 0:03:45.5]} 29. Rc3
{[%clk 0:01:02]} 29... Nd6 {[%clk 0:03:44.3]} 30. Nb4 {[%clk 0:01:01.6]} 30...
cxb4 {[%clk 0:03:42.5]} 31. Rxc8 {[%clk 0:00:59.9]} 31... Nxc8 {[%clk
0:03:41.6]} 32. Kd2 {[%clk 0:00:59.8]} 32... Kd6 {[%clk 0:03:38.7]} 33. Kc2
{[%clk 0:00:59.2]} 33... Kc5 {[%clk 0:03:38.6]} 34. Kb3 {[%clk 0:00:58.7]} 34...
Nd6 {[%clk 0:03:36.1]} 35. f3 {[%clk 0:00:57.6]} 35... Nf5 {[%clk 0:03:35.3]}
0-1

[Event "Live Chess"]
[Site "Chess.com"]
[Date "2023.05.20"]
[Round "-"]
[White "ZackirtyChess"]
[Black "WilliamofOrange16th"]
[Result "0-1"]
[WhiteElo "1144"]
[BlackElo "1932"]
[TimeControl "300"]
[EndTime "9:19:30 PDT"]
[Termination "WilliamofOrange16th won by checkmate"]

1. d4 {[%clk 0:04:59]} 1... d5 {[%clk 0:04:57.9]} 2. c4 {[%clk 0:04:58]} 2... c6
{[%clk 0:04:57]} 3. Nc3 {[%clk 0:04:55.1]} 3... Nf6 {[%clk 0:04:56]} 4. Nf3
{[%clk 0:04:52.6]} 4... a6 {[%clk 0:04:53.2]} 5. cxd5 {[%clk 0:04:50.3]} 5...
cxd5 {[%clk 0:04:52]} 6. Bg5 {[%clk 0:04:47.9]} 6... Ne4 {[%clk 0:04:36.4]} 7.
e3 {[%clk 0:04:33.2]} 7... h6 {[%clk 0:04:34]} 8. Bh4 {[%clk 0:04:28.4]} 8...
Qa5 {[%clk 0:04:29]} 9. Qb3 {[%clk 0:04:17.2]} 9... Nc6 {[%clk 0:04:19.2]} 10.
Bd3 {[%clk 0:04:09.2]} 10... Nxc3 {[%clk 0:04:16.7]} 11. Qxc3 {[%clk 0:04:06.1]}
11... Qxc3+ {[%clk 0:04:15.6]} 12. bxc3 {[%clk 0:04:05.2]} 12... Bg4 {[%clk
0:04:07.4]} 13. Ne5 {[%clk 0:03:59.6]} 13... Nxe5 {[%clk 0:04:05.8]} 14. dxe5
{[%clk 0:03:58.8]} 14... Bd7 {[%clk 0:03:55.1]} 15. O-O {[%clk 0:03:54.5]} 15...
e6 {[%clk 0:03:54.2]} 16. Rab1 {[%clk 0:03:53]} 16... b5 {[%clk 0:03:52]} 17.
Rb2 {[%clk 0:03:45.5]} 17... g5 {[%clk 0:03:45.4]} 18. Bg3 {[%clk 0:03:43.6]}
18... Bc6 {[%clk 0:03:21.5]} 19. Re1 {[%clk 0:03:35.6]} 19... Be7 {[%clk
0:03:07.6]} 20. e4 {[%clk 0:03:32.8]} 20... Kd7 {[%clk 0:02:49.9]} 21. exd5
{[%clk 0:03:30]} 21... Bxd5 {[%clk 0:02:49.8]} 22. Rc2 {[%clk 0:03:24.5]} 22...
Rhc8 {[%clk 0:02:47.9]} 23. Rec1 {[%clk 0:03:20.4]} 23... Bc4 {[%clk 0:02:40.3]}
24. Be4 {[%clk 0:03:12.1]} 24... Rab8 {[%clk 0:02:39.2]} 25. h3 {[%clk 0:03:07]}
25... Ba3 {[%clk 0:02:35.6]} 26. Rd1+ {[%clk 0:02:58.8]} 26... Ke7 {[%clk
0:02:35]} 27. h4 {[%clk 0:02:56.4]} 27... Rd8 {[%clk 0:02:30]} 28. Rxd8 {[%clk
0:02:50.6]} 28... Rxd8 {[%clk 0:02:28.1]} 29. hxg5 {[%clk 0:02:50.1]} 29... Rd1+
{[%clk 0:02:22.7]} 30. Kh2 {[%clk 0:02:48.5]} 30... hxg5 {[%clk 0:02:22.2]} 31.
f4 {[%clk 0:02:46.4]} 31... gxf4 {[%clk 0:02:10.7]} 32. Bxf4 {[%clk 0:02:45.8]}
32... f6 {[%clk 0:01:56.8]} 33. exf6+ {[%clk 0:02:41.3]} 33... Kxf6 {[%clk
0:01:56.7]} 34. Rf2 {[%clk 0:02:38.2]} 34... Ke7 {[%clk 0:01:46.2]} 35. Bg5+
{[%clk 0:02:35.8]} 35... Kd7 {[%clk 0:01:45]} 36. Rf7+ {[%clk 0:02:33.4]} 36...
Kd6 {[%clk 0:01:40.3]} 37. Bf4+ {[%clk 0:02:28.7]} 37... Kc5 {[%clk 0:01:33.1]}
38. Rc7+ {[%clk 0:02:24.5]} 38... Kb6 {[%clk 0:01:32.2]} 39. Rc6+ {[%clk
0:02:14.3]} 39... Ka7 {[%clk 0:01:26.4]} 40. Be3+ {[%clk 0:02:12.5]} 40... Kb8
{[%clk 0:01:24.8]} 41. Rxa6 {[%clk 0:02:02.7]} 41... Bd6+ {[%clk 0:01:17.6]} 42.
Kh3 {[%clk 0:01:54.8]} 42... Rh1+ {[%clk 0:01:11.9]} 43. Kg4 {[%clk 0:01:50.2]}
43... Be2+ {[%clk 0:01:10.5]} 44. Bf3 {[%clk 0:01:46.8]} 44... Bxf3+ {[%clk
0:01:05.3]} 45. Kxf3 {[%clk 0:01:43.8]} 45... Kc7 {[%clk 0:01:02.5]} 46. Ra7+
{[%clk 0:01:38.7]} 46... Kc6 {[%clk 0:01:00.8]} 47. Ra6+ {[%clk 0:01:36.8]}
47... Kd5 {[%clk 0:00:58.6]} 48. Ra5 {[%clk 0:01:33.8]} 48... Kc6 {[%clk
0:00:57.1]} 49. g4 {[%clk 0:01:30.4]} 49... Rh3+ {[%clk 0:00:53.4]} 50. Kg2
{[%clk 0:01:27.6]} 50... Rxe3 {[%clk 0:00:52.1]} 51. g5 {[%clk 0:01:24.6]} 51...
Rg3+ {[%clk 0:00:50.2]} 52. Kf2 {[%clk 0:01:23.3]} 52... Rxg5 {[%clk 0:00:50.1]}
53. Ra6+ {[%clk 0:01:21.4]} 53... Kd5 {[%clk 0:00:48.8]} 54. Ke3 {[%clk
0:01:18.6]} 54... Rg3+ {[%clk 0:00:47.3]} 55. Kf2 {[%clk 0:01:16.7]} 55... Rxc3
{[%clk 0:00:45.9]} 56. Ra5 {[%clk 0:01:13.8]} 56... Kc4 {[%clk 0:00:43.7]} 57.
Ke2 {[%clk 0:01:12.1]} 57... Bc5 {[%clk 0:00:39.3]} 58. Ra6 {[%clk 0:01:06.2]}
58... e5 {[%clk 0:00:37.7]} 59. Re6 {[%clk 0:01:04.1]} 59... Bd4 {[%clk
0:00:37.1]} 60. Rc6+ {[%clk 0:01:02.1]} 60... Kd5 {[%clk 0:00:35.7]} 61. Rxc3
{[%clk 0:00:57.6]} 61... Bxc3 {[%clk 0:00:35.6]} 62. Kd3 {[%clk 0:00:57.1]}
62... Bd4 {[%clk 0:00:33.9]} 63. a3 {[%clk 0:00:55.6]} 63... e4+ {[%clk
0:00:33.3]} 64. Ke2 {[%clk 0:00:54.5]} 64... Kc4 {[%clk 0:00:33.2]} 65. Kd2
{[%clk 0:00:53.7]} 65... Kb3 {[%clk 0:00:32.2]} 66. Kc1 {[%clk 0:00:53.2]} 66...
Kxa3 {[%clk 0:00:31.5]} 67. Kc2 {[%clk 0:00:52.8]} 67... b4 {[%clk 0:00:30.3]}
68. Kd2 {[%clk 0:00:51.8]} 68... b3 {[%clk 0:00:29.7]} 69. Kc1 {[%clk 0:00:51]}
69... b2+ {[%clk 0:00:27.7]} 70. Kb1 {[%clk 0:00:50.3]} 70... e3 {[%clk
0:00:27.1]} 71. Kc2 {[%clk 0:00:49.2]} 71... e2 {[%clk 0:00:26.2]} 72. Kd3
{[%clk 0:00:47.9]} 72... b1=Q+ {[%clk 0:00:25]} 73. Kxe2 {[%clk 0:00:46.8]}
73... Qc2+ {[%clk 0:00:23]} 74. Kf3 {[%clk 0:00:45.7]} 74... Qd3+ {[%clk
0:00:22.1]} 75. Kf4 {[%clk 0:00:44.8]} 75... Qe3+ {[%clk 0:00:21.1]} 76. Kf5
{[%clk 0:00:44.4]} 76... Kb4 {[%clk 0:00:19]} 77. Kg4 {[%clk 0:00:43.2]} 77...
Qf2 {[%clk 0:00:18.1]} 78. Kh3 {[%clk 0:00:42.1]} 78... Qg1 {[%clk 0:00:17.3]}
79. Kh4 {[%clk 0:00:41.4]} 79... Kc5 {[%clk 0:00:17.2]} 80. Kh5 {[%clk
0:00:40.8]} 80... Kd5 {[%clk 0:00:17.1]} 81. Kh6 {[%clk 0:00:40.3]} 81... Ke5
{[%clk 0:00:17]} 82. Kh7 {[%clk 0:00:39.7]} 82... Kf5 {[%clk 0:00:16.9]} 83. Kh6
{[%clk 0:00:38.6]} 83... Kf6 {[%clk 0:00:16.8]} 84. Kh7 {[%clk 0:00:38.1]} 84...
Qg7# {[%clk 0:00:15.9]} 0-1

[Event "Live Chess"]
[Site "Chess.com"]
[Date "2023.05.20"]
[Round "-"]
[White "jk0110"]
[Black "McSlash1"]
[Result "0-1"]
[WhiteElo "1066"]
[BlackElo "2068"]
[TimeControl "300"]
[EndTime "9:19:30 PDT"]
[Termination "McSlash1 won by checkmate"]

1. e4 {[%clk 0:04:58.1]} 1... c5 {[%clk 0:04:59.6]} 2. b4 {[%clk 0:04:55.3]}
2... cxb4 {[%clk 0:04:58.3]} 3. d4 {[%clk 0:04:53.7]} 3... e6 {[%clk 0:04:57.1]}
4. Nf3 {[%clk 0:04:46.6]} 4... d5 {[%clk 0:04:56.5]} 5. e5 {[%clk 0:04:45.6]}
5... Nc6 {[%clk 0:04:55.1]} 6. a3 {[%clk 0:04:39.5]} 6... f6 {[%clk 0:04:53.6]}
7. axb4 {[%clk 0:04:34.4]} 7... Bxb4+ {[%clk 0:04:51.7]} 8. c3 {[%clk
0:04:32.8]} 8... Ba5 {[%clk 0:04:50.3]} 9. exf6 {[%clk 0:04:06]} 9... Nxf6
{[%clk 0:04:48.5]} 10. Bd3 {[%clk 0:03:59.6]} 10... O-O {[%clk 0:04:47.1]} 11.
O-O {[%clk 0:03:52.4]} 11... Bc7 {[%clk 0:04:40.5]} 12. h3 {[%clk 0:03:42.9]}
12... Qd6 {[%clk 0:04:38.5]} 13. Bg5 {[%clk 0:03:24.3]} 13... Ne4 {[%clk
0:04:36.6]} 14. Re1 {[%clk 0:02:47]} 14... Nxg5 {[%clk 0:04:11.7]} 15. Nxg5
{[%clk 0:02:42.6]} 15... Qh2+ {[%clk 0:04:06.7]} 16. Kf1 {[%clk 0:02:41.7]}
16... Qh1+ {[%clk 0:04:06.1]} 17. Ke2 {[%clk 0:02:38.7]} 17... Qxg2 {[%clk
0:04:05.7]} 18. Rg1 {[%clk 0:02:23.2]} 18... Qxf2# {[%clk 0:04:02.8]} 0-1

[Event "Live Chess"]
[Site "Chess.com"]
[Date "2023.05.20"]
[Round "-"]
[White "Ayush_prahlad_Gupta"]
[Black "MrDodgy"]
[Result "0-1"]
[WhiteElo "1800"]
[BlackElo "2323"]
[TimeControl "300"]
[EndTime "9:19:32 PDT"]
[Termination "MrDodgy won by checkmate"]

1. e4 {[%clk 0:04:55.6]} 1... c5 {[%clk 0:04:59.2]} 2. Nc3 {[%clk 0:04:54]} 2...
Nc6 {[%clk 0:04:57.3]} 3. Bc4 {[%clk 0:04:51.4]} 3... e6 {[%clk 0:04:55.9]} 4.
a4 {[%clk 0:04:45.1]} 4... Nf6 {[%clk 0:04:54.3]} 5. Nf3 {[%clk 0:04:44]} 5...
Nxe4 {[%clk 0:04:50.6]} 6. Nxe4 {[%clk 0:04:36.5]} 6... d5 {[%clk 0:04:50.1]} 7.
Bxd5 {[%clk 0:04:33.3]} 7... exd5 {[%clk 0:04:49.1]} 8. Ng3 {[%clk 0:04:26]}
8... Bd6 {[%clk 0:04:44.6]} 9. O-O {[%clk 0:04:24.1]} 9... O-O {[%clk
0:04:42.7]} 10. d4 {[%clk 0:03:56]} 10... c4 {[%clk 0:04:38.2]} 11. Bg5 {[%clk
0:03:48.5]} 11... Qc7 {[%clk 0:04:31.9]} 12. c3 {[%clk 0:03:43.1]} 12... h6
{[%clk 0:04:28.6]} 13. Be3 {[%clk 0:03:20.9]} 13... Bg4 {[%clk 0:04:24.1]} 14.
h3 {[%clk 0:03:15.5]} 14... Be6 {[%clk 0:04:13.6]} 15. Nh5 {[%clk 0:03:00]}
15... g6 {[%clk 0:03:48.8]} 16. Nf6+ {[%clk 0:02:52.4]} 16... Kg7 {[%clk
0:03:47.3]} 17. Ng4 {[%clk 0:02:39.7]} 17... Rh8 {[%clk 0:03:00.2]} 18. Qd2
{[%clk 0:02:36.4]} 18... Bxg4 {[%clk 0:02:32.7]} 19. hxg4 {[%clk 0:02:33.8]}
19... Rae8 {[%clk 0:02:21.8]} 20. Ne5 {[%clk 0:02:17]} 20... f6 {[%clk
0:02:08.7]} 21. Nxc6 {[%clk 0:02:13]} 21... bxc6 {[%clk 0:02:08.6]} 22. f4
{[%clk 0:02:10.5]} 22... Re4 {[%clk 0:02:05.6]} 23. g5 {[%clk 0:01:48]} 23...
hxg5 {[%clk 0:02:02.7]} 24. fxg5 {[%clk 0:01:46.8]} 24... Bh2+ {[%clk
0:01:40.3]} 25. Kf2 {[%clk 0:01:45.8]} 25... Qg3+ {[%clk 0:01:34.8]} 26. Ke2
{[%clk 0:01:44.8]} 26... Rhe8 {[%clk 0:01:32.1]} 27. gxf6+ {[%clk 0:01:36.2]}
27... Kf7 {[%clk 0:01:29.9]} 28. Rf3 {[%clk 0:01:09.4]} 28... Qxg2+ {[%clk
0:01:26.5]} 29. Rf2 {[%clk 0:01:08.1]} 29... Rxe3+ {[%clk 0:01:22]} 30. Kd1
{[%clk 0:01:00.8]} 30... Re1+ {[%clk 0:01:15.3]} 31. Kc2 {[%clk 0:00:59.6]}
31... Qe4+ {[%clk 0:01:12.4]} 32. Qd3 {[%clk 0:00:54.6]} 32... Qxd3# {[%clk
0:01:10]} 0-1

[Event "Live Chess"]
[Site "Chess.com"]
[Date "2023.05.20"]
[Round "-"]
[White "djw60"]
[Black "VovaOvchar1990"]
[Result "1-0"]
[WhiteElo "2119"]
[BlackElo "1217"]
[TimeControl "300"]
[EndTime "9:19:32 PDT"]
[Termination "djw60 won by checkmate"]

1. Nf3 {[%clk 0:04:57.2]} 1... Nc6 {[%clk 0:04:55.4]} 2. d4 {[%clk 0:04:55.4]}
2... d5 {[%clk 0:04:53.9]} 3. c4 {[%clk 0:04:53.7]} 3... dxc4 {[%clk 0:04:52]}
4. d5 {[%clk 0:04:52.2]} 4... Nb8 {[%clk 0:04:47.9]} 5. e4 {[%clk 0:04:50.4]}
5... e6 {[%clk 0:04:46.6]} 6. Bxc4 {[%clk 0:04:49]} 6... exd5 {[%clk 0:04:45]}
7. exd5 {[%clk 0:04:47.9]} 7... Bb4+ {[%clk 0:04:40.2]} 8. Nc3 {[%clk
0:04:46.1]} 8... Bxc3+ {[%clk 0:04:38.8]} 9. bxc3 {[%clk 0:04:44.2]} 9... Nf6
{[%clk 0:04:38.3]} 10. O-O {[%clk 0:04:41.5]} 10... O-O {[%clk 0:04:36.9]} 11.
Bg5 {[%clk 0:04:40.4]} 11... h6 {[%clk 0:04:35]} 12. Bh4 {[%clk 0:04:38.7]}
12... Nbd7 {[%clk 0:04:33.6]} 13. Bb3 {[%clk 0:04:31.9]} 13... Qe7 {[%clk
0:04:30.1]} 14. Re1 {[%clk 0:04:27.3]} 14... Qd6 {[%clk 0:04:28.6]} 15. c4
{[%clk 0:04:23.5]} 15... Ng4 {[%clk 0:04:26.7]} 16. Be7 {[%clk 0:04:15.4]} 16...
Qf4 {[%clk 0:04:11.5]} 17. g3 {[%clk 0:04:08.9]} 17... Qf5 {[%clk 0:03:58.6]}
18. Bc2 {[%clk 0:04:02.4]} 18... Qh5 {[%clk 0:03:46.1]} 19. Bxf8 {[%clk
0:03:32.3]} 19... Nxf8 {[%clk 0:03:43.5]} 20. Re8 {[%clk 0:03:27]} 20... f5
{[%clk 0:03:29.1]} 21. Qe2 {[%clk 0:03:19.5]} 21... Nf6 {[%clk 0:03:16.7]} 22.
Re7 {[%clk 0:03:03]} 22... Bd7 {[%clk 0:03:04.8]} 23. Nd4 {[%clk 0:02:52.3]}
23... Ng6 {[%clk 0:02:57.5]} 24. Qxh5 {[%clk 0:02:48.5]} 24... Nxh5 {[%clk
0:02:54.8]} 25. Rxd7 {[%clk 0:02:47.3]} 25... Rc8 {[%clk 0:02:11.6]} 26. Bxf5
{[%clk 0:02:43.7]} 26... Ne5 {[%clk 0:01:50.6]} 27. Rxg7+ {[%clk 0:02:38.3]}
27... Kxg7 {[%clk 0:01:46]} 28. Bxc8 {[%clk 0:02:38.2]} 28... Nxc4 {[%clk
0:01:42.9]} 29. Bxb7 {[%clk 0:02:34.3]} 29... Nd6 {[%clk 0:01:37]} 30. Bc6
{[%clk 0:02:32.2]} 30... Nf6 {[%clk 0:01:32.9]} 31. Ne6+ {[%clk 0:02:30.5]}
31... Kg6 {[%clk 0:01:30.6]} 32. Nxc7 {[%clk 0:02:29.3]} 32... Nfe4 {[%clk
0:01:27.1]} 33. Re1 {[%clk 0:02:27.3]} 33... Kg5 {[%clk 0:01:24.3]} 34. Ne6+
{[%clk 0:02:25.8]} 34... Kf5 {[%clk 0:01:22.4]} 35. Nd4+ {[%clk 0:02:22.3]}
35... Kg4 {[%clk 0:01:20.3]} 36. Kg2 {[%clk 0:02:20.9]} 36... a5 {[%clk
0:01:06]} 37. f3+ {[%clk 0:02:19.3]} 37... Kg5 {[%clk 0:01:03.6]} 38. fxe4
{[%clk 0:02:17.4]} 38... a4 {[%clk 0:01:00.8]} 39. e5 {[%clk 0:02:16.2]} 39...
a3 {[%clk 0:00:58.8]} 40. exd6 {[%clk 0:02:15.1]} 40... h5 {[%clk 0:00:57.2]}
41. d7 {[%clk 0:02:12.9]} 41... h4 {[%clk 0:00:57.1]} 42. d8=Q+ {[%clk
0:02:12.2]} 42... Kg4 {[%clk 0:00:53.5]} 43. h3+ {[%clk 0:02:08.7]} 43... Kh5
{[%clk 0:00:51]} 44. g4+ {[%clk 0:02:07.2]} 44... Kh6 {[%clk 0:00:48]} 45. Re6+
{[%clk 0:02:06.8]} 45... Kg7 {[%clk 0:00:46.1]} 46. Qd7+ {[%clk 0:02:06.3]}
46... Kf8 {[%clk 0:00:44.7]} 47. Re8# {[%clk 0:02:06.2]} 1-0

[Event "Live Chess"]
[Site "Chess.com"]
[Date "2023.05.20"]
[Round "-"]
[White "EdenHazard8"]
[Black "TobyQuaite"]
[Result "1-0"]
[WhiteElo "2103"]
[BlackElo "1710"]
[TimeControl "300"]
[EndTime "9:19:32 PDT"]
[Termination "EdenHazard8 won by resignation"]

1. e4 {[%clk 0:04:58.3]} 1... e6 {[%clk 0:04:59.4]} 2. d4 {[%clk 0:04:56.9]}
2... d5 {[%clk 0:04:59]} 3. exd5 {[%clk 0:04:56.4]} 3... exd5 {[%clk 0:04:58.9]}
4. Bd3 {[%clk 0:04:55.2]} 4... Nf6 {[%clk 0:04:58.1]} 5. c3 {[%clk 0:04:54.6]}
5... Bd6 {[%clk 0:04:57.6]} 6. Nf3 {[%clk 0:04:53.8]} 6... O-O {[%clk
0:04:57.1]} 7. O-O {[%clk 0:04:51.2]} 7... h6 {[%clk 0:04:56.1]} 8. h3 {[%clk
0:04:48.6]} 8... c6 {[%clk 0:04:55.2]} 9. Nbd2 {[%clk 0:04:43.8]} 9... Nbd7
{[%clk 0:04:54.7]} 10. Re1 {[%clk 0:04:42.8]} 10... Re8 {[%clk 0:04:52.3]} 11.
Nf1 {[%clk 0:04:41.5]} 11... Rxe1 {[%clk 0:04:41.6]} 12. Qxe1 {[%clk 0:04:40]}
12... Qc7 {[%clk 0:04:41.5]} 13. Ne3 {[%clk 0:04:30.9]} 13... Nf8 {[%clk
0:04:37.9]} 14. Nf5 {[%clk 0:04:29.5]} 14... Bxf5 {[%clk 0:04:22.9]} 15. Bxf5
{[%clk 0:04:26.4]} 15... Re8 {[%clk 0:04:22.4]} 16. Qd1 {[%clk 0:04:22.4]} 16...
Ne6 {[%clk 0:04:21.1]} 17. Bc2 {[%clk 0:04:16.5]} 17... c5 {[%clk 0:03:43.5]}
18. Be3 {[%clk 0:03:59.3]} 18... c4 {[%clk 0:03:37.2]} 19. Qd2 {[%clk
0:03:51.7]} 19... Nf4 {[%clk 0:03:31.9]} 20. Nh4 {[%clk 0:03:45.1]} 20... g6
{[%clk 0:03:14]} 21. g3 {[%clk 0:03:35.4]} 21... Nxh3+ {[%clk 0:02:56.6]} 22.
Kg2 {[%clk 0:03:33.9]} 22... Ng5 {[%clk 0:02:36.5]} 23. Bxg5 {[%clk 0:03:29.2]}
23... hxg5 {[%clk 0:02:36.4]} 24. Qxg5 {[%clk 0:03:27.4]} 24... Ne4 {[%clk
0:02:27.9]} 25. Bxe4 {[%clk 0:03:21.6]} 25... dxe4 {[%clk 0:02:27.8]} 26. Rh1
{[%clk 0:03:19.6]} 26... Bf8 {[%clk 0:02:17.5]} 27. Nxg6 {[%clk 0:03:09.3]}
27... fxg6 {[%clk 0:02:16.6]} 28. Qxg6+ {[%clk 0:03:08.9]} 1-0

[Event "Live Chess"]
[Site "Chess.com"]
[Date "2023.05.20"]
[Round "-"]
[White "HonestJoe1"]
[Black "Iggle-Piggle"]
[Result "1-0"]
[WhiteElo "2117"]
[BlackElo "1254"]
[TimeControl "300"]
[EndTime "9:19:33 PDT"]
[Termination "HonestJoe1 won by resignation"]

1. d4 {[%clk 0:04:56.2]} 1... d5 {[%clk 0:04:57.6]} 2. Nf3 {[%clk 0:04:54.9]}
2... e6 {[%clk 0:04:54]} 3. c4 {[%clk 0:04:52.8]} 3... Nf6 {[%clk 0:04:47.7]} 4.
g3 {[%clk 0:04:52]} 4... c6 {[%clk 0:04:41.6]} 5. Bg2 {[%clk 0:04:51.1]} 5...
dxc4 {[%clk 0:04:33.9]} 6. O-O {[%clk 0:04:50.2]} 6... Be7 {[%clk 0:04:24.9]} 7.
Ne5 {[%clk 0:04:49.1]} 7... O-O {[%clk 0:04:17.5]} 8. Nxc4 {[%clk 0:04:47.7]}
8... Nbd7 {[%clk 0:04:09.8]} 9. Nc3 {[%clk 0:04:46.7]} 9... Nb6 {[%clk
0:04:04.2]} 10. Ne5 {[%clk 0:04:45.6]} 10... Nbd5 {[%clk 0:03:58.6]} 11. e4
{[%clk 0:04:42.9]} 11... Nxc3 {[%clk 0:03:45]} 12. bxc3 {[%clk 0:04:41.4]} 12...
Qa5 {[%clk 0:03:31.1]} 13. Qb3 {[%clk 0:04:34.3]} 13... Rd8 {[%clk 0:03:19.8]}
14. Be3 {[%clk 0:04:26.6]} 14... Bd7 {[%clk 0:03:12.4]} 15. Nc4 {[%clk
0:04:08.4]} 15... Qa6 {[%clk 0:03:04.9]} 16. Rfb1 {[%clk 0:04:06.5]} 16... b6
{[%clk 0:02:58.9]} 17. Ne5 {[%clk 0:04:05]} 17... c5 {[%clk 0:02:49.1]} 18. Nxd7
{[%clk 0:03:52.3]} 18... Nxd7 {[%clk 0:02:43.6]} 19. e5 {[%clk 0:03:44.7]} 19...
Rab8 {[%clk 0:02:37.1]} 20. Qd1 {[%clk 0:03:35.9]} 20... cxd4 {[%clk 0:02:29.8]}
21. cxd4 {[%clk 0:03:34.9]} 21... Nf8 {[%clk 0:02:22.8]} 22. Qh5 {[%clk
0:03:29.7]} 22... h6 {[%clk 0:02:18.3]} 23. Be4 {[%clk 0:03:27.3]} 23... Qe2
{[%clk 0:01:59.8]} 1-0

[Event "Live Chess"]
[Site "Chess.com"]
[Date "2023.05.20"]
[Round "-"]
[White "KeithArkell"]
[Black "lateforthesky"]
[Result "1-0"]
[WhiteElo "2609"]
[BlackElo "2133"]
[TimeControl "300"]
[EndTime "9:19:34 PDT"]
[Termination "KeithArkell won by resignation"]

1. d4 {[%clk 0:04:58.4]} 1... Nf6 {[%clk 0:04:58.4]} 2. Nf3 {[%clk 0:04:57.6]}
2... g6 {[%clk 0:04:57]} 3. c4 {[%clk 0:04:56.8]} 3... Bg7 {[%clk 0:04:55.9]} 4.
g3 {[%clk 0:04:56.2]} 4... d6 {[%clk 0:04:54.9]} 5. Bg2 {[%clk 0:04:55.5]} 5...
O-O {[%clk 0:04:53.2]} 6. O-O {[%clk 0:04:54.7]} 6... Nbd7 {[%clk 0:04:47.2]} 7.
d5 {[%clk 0:04:53]} 7... Nb6 {[%clk 0:04:41.9]} 8. Nbd2 {[%clk 0:04:51.8]} 8...
c6 {[%clk 0:04:40.7]} 9. dxc6 {[%clk 0:04:50.2]} 9... bxc6 {[%clk 0:04:39.4]}
10. Nd4 {[%clk 0:04:49.9]} 10... Bb7 {[%clk 0:04:19.4]} 11. Nxc6 {[%clk
0:04:47.8]} 11... Qc7 {[%clk 0:04:17.4]} 12. Nb4 {[%clk 0:04:37.9]} 12... Bxg2
{[%clk 0:04:15.7]} 13. Kxg2 {[%clk 0:04:37.1]} 13... Nxc4 {[%clk 0:04:11.9]} 14.
Nxc4 {[%clk 0:04:33.6]} 14... Qxc4 {[%clk 0:04:10.4]} 15. Nd3 {[%clk 0:04:32.7]}
15... Rfc8 {[%clk 0:03:58.8]} 16. Bd2 {[%clk 0:04:20.5]} 16... Ne4 {[%clk
0:03:52.9]} 17. Be3 {[%clk 0:04:16.7]} 17... a5 {[%clk 0:03:45.5]} 18. Kg1
{[%clk 0:03:48.9]} 18... a4 {[%clk 0:03:35.4]} 19. b3 {[%clk 0:03:31.9]} 19...
axb3 {[%clk 0:03:24.8]} 20. axb3 {[%clk 0:03:30.7]} 20... Rxa1 {[%clk
0:02:56.9]} 21. Qxa1 {[%clk 0:03:27]} 21... Qxb3 {[%clk 0:02:46.5]} 22. Qa6
{[%clk 0:03:19.4]} 22... h5 {[%clk 0:02:35.3]} 23. Qxc8+ {[%clk 0:03:16.7]} 1-0